[Event "Early-Titled-Tuesday-Blitz-February-13-2024"]
[Site "Chess.com"]
[Date "2024.02.13"]
[Round "5"]
[White "PabloZarnicki"]
[Black "Grandelicious"]
[Result "1-0"]
[WhiteElo "2643"]
[BlackElo "2862"]
[TimeControl "180+1"]
[EndTime "8:58:42 PST"]
[Termination "PabloZarnicki won by resignation"]

1. e4 {[%clk 0:03:00.9]} 1... c5 {[%clk 0:03:00.3]} 2. Nf3 {[%clk 0:03:00.8]}
2... e6 {[%clk 0:03:00.9]} 3. c3 {[%clk 0:02:59.2]} 3... Nc6 {[%clk 0:03:01.4]}
4. d4 {[%clk 0:02:57.9]} 4... d5 {[%clk 0:03:01.7]} 5. exd5 {[%clk 0:02:57.3]}
5... exd5 {[%clk 0:03:00.3]} 6. Bb5 {[%clk 0:02:56.3]} 6... c4 {[%clk
0:02:58.3]} 7. O-O {[%clk 0:02:55.8]} 7... Bd6 {[%clk 0:02:58.3]} 8. b3 {[%clk
0:02:55.3]} 8... cxb3 {[%clk 0:02:58.9]} 9. axb3 {[%clk 0:02:55.8]} 9... Ne7
{[%clk 0:02:59.6]} 10. Ba3 {[%clk 0:02:52.7]} 10... O-O {[%clk 0:02:58.4]} 11.
Re1 {[%clk 0:02:49.5]} 11... Bg4 {[%clk 0:02:53.7]} 12. Nbd2 {[%clk 0:02:48.9]}
12... Bxa3 {[%clk 0:02:49.2]} 13. Rxa3 {[%clk 0:02:49.8]} 13... Rc8 {[%clk
0:02:39.9]} 14. Nf1 {[%clk 0:02:46.3]} 14... Qd6 {[%clk 0:02:31.8]} 15. Ra2
{[%clk 0:02:45.8]} 15... Ng6 {[%clk 0:02:19.3]} 16. h3 {[%clk 0:02:40.8]} 16...
Be6 {[%clk 0:02:11]} 17. Ng3 {[%clk 0:02:37.1]} 17... a6 {[%clk 0:02:08]} 18.
Bd3 {[%clk 0:02:32.9]} 18... Nf4 {[%clk 0:02:02.2]} 19. Ne2 {[%clk 0:02:15.5]}
19... Nxd3 {[%clk 0:01:43]} 20. Qxd3 {[%clk 0:02:15.2]} 20... h6 {[%clk
0:01:40.3]} 21. Ng3 {[%clk 0:02:08.8]} 21... Rc7 {[%clk 0:01:31.6]} 22. Rae2
{[%clk 0:02:08.4]} 22... Rfc8 {[%clk 0:01:29.1]} 23. Nf5 {[%clk 0:02:08.3]}
23... Qf4 {[%clk 0:01:23.3]} 24. Ne3 {[%clk 0:01:54.6]} 24... Na5 {[%clk
0:01:17.6]} 25. c4 {[%clk 0:01:34.4]} 25... dxc4 {[%clk 0:01:12.4]} 26. bxc4
{[%clk 0:01:35.3]} 26... g6 {[%clk 0:00:50.4]} 27. d5 {[%clk 0:01:15.5]} 27...
Bd7 {[%clk 0:00:50.7]} 28. d6 {[%clk 0:01:06.7]} 28... Rc6 {[%clk 0:00:49.8]}
29. Nd5 {[%clk 0:01:06.9]} 29... Qxd6 {[%clk 0:00:46.7]} 30. Ne7+ {[%clk
0:01:06.7]} 30... Kg7 {[%clk 0:00:47.3]} 31. Qc3+ {[%clk 0:01:02.4]} 31... Qf6
{[%clk 0:00:42.2]} 32. Qxa5 {[%clk 0:00:57.3]} 32... Rc5 {[%clk 0:00:42.4]} 33.
Qa3 {[%clk 0:00:45.5]} 1-0

[Event "Early-Titled-Tuesday-Blitz-February-13-2024"]
[Site "Chess.com"]
[Date "2024.02.13"]
[Round "5"]
[White "Vaathi_Coming"]
[Black "agvania123"]
[Result "1-0"]
[WhiteElo "2892"]
[BlackElo "2398"]
[TimeControl "180+1"]
[EndTime "8:58:42 PST"]
[Termination "Vaathi_Coming won by resignation"]

1. b3 {[%clk 0:03:00.9]} 1... Nf6 {[%clk 0:02:58.9]} 2. Bb2 {[%clk 0:03:01.3]}
2... d5 {[%clk 0:02:59]} 3. Nf3 {[%clk 0:03:01.5]} 3... g6 {[%clk 0:02:58.7]} 4.
c4 {[%clk 0:03:01.6]} 4... c6 {[%clk 0:02:55.6]} 5. g3 {[%clk 0:03:01.3]} 5...
Bg7 {[%clk 0:02:55.7]} 6. Bg2 {[%clk 0:03:01.2]} 6... O-O {[%clk 0:02:55.8]} 7.
O-O {[%clk 0:03:01.4]} 7... Bg4 {[%clk 0:02:55.7]} 8. d3 {[%clk 0:02:59.2]} 8...
Nbd7 {[%clk 0:02:54.2]} 9. Nbd2 {[%clk 0:02:59.3]} 9... a5 {[%clk 0:02:45.1]}
10. a3 {[%clk 0:02:53.9]} 10... Re8 {[%clk 0:02:43.7]} 11. Ne5 {[%clk
0:02:53.1]} 11... Nxe5 {[%clk 0:02:41.7]} 12. Bxe5 {[%clk 0:02:54]} 12... Qd7
{[%clk 0:02:33.4]} 13. Nf3 {[%clk 0:02:50]} 13... Bh3 {[%clk 0:02:32.7]} 14. Qc2
{[%clk 0:02:48.2]} 14... Bxg2 {[%clk 0:02:31.6]} 15. Kxg2 {[%clk 0:02:49.1]}
15... c5 {[%clk 0:02:23.6]} 16. cxd5 {[%clk 0:02:46.2]} 16... Qxd5 {[%clk
0:02:22.8]} 17. e4 {[%clk 0:02:46.5]} 17... Qc6 {[%clk 0:02:18.1]} 18. Rfc1
{[%clk 0:02:43]} 18... Rac8 {[%clk 0:02:10.9]} 19. a4 {[%clk 0:02:27.9]} 19...
Red8 {[%clk 0:02:05.5]} 20. Qc4 {[%clk 0:02:16.8]} 20... Qd7 {[%clk 0:02:00]}
21. Rd1 {[%clk 0:02:11.2]} 21... Qc6 {[%clk 0:01:48.6]} 22. Bc3 {[%clk
0:01:52.3]} 22... b6 {[%clk 0:01:43]} 23. Ne5 {[%clk 0:01:51.9]} 23... Qe8
{[%clk 0:01:40.1]} 24. f4 {[%clk 0:01:48.3]} 24... Nd7 {[%clk 0:01:38.8]} 25.
Nf3 {[%clk 0:01:43.4]} 25... e5 {[%clk 0:01:21.5]} 26. f5 {[%clk 0:01:39.3]}
26... Bf6 {[%clk 0:01:12.1]} 27. g4 {[%clk 0:01:37.1]} 27... Qe7 {[%clk
0:01:08.1]} 28. Bd2 {[%clk 0:01:34.3]} 28... Qd6 {[%clk 0:00:56.8]} 29. Rf1
{[%clk 0:01:25.5]} 29... Nb8 {[%clk 0:00:55.4]} 30. Bg5 {[%clk 0:01:23.9]} 30...
Nc6 {[%clk 0:00:50.6]} 31. fxg6 {[%clk 0:01:18.6]} 31... hxg6 {[%clk 0:00:48.9]}
32. Nh4 {[%clk 0:01:18.2]} 32... Bxg5 {[%clk 0:00:33.3]} 33. Qxf7+ {[%clk
0:01:16.3]} 33... Kh8 {[%clk 0:00:34]} 34. Nxg6+ {[%clk 0:01:16.9]} 34... Qxg6
{[%clk 0:00:33.8]} 35. Qxg6 {[%clk 0:01:17.8]} 35... Bf4 {[%clk 0:00:25]} 36.
Rf3 {[%clk 0:01:16.5]} 1-0

[Event "Early-Titled-Tuesday-Blitz-February-13-2024"]
[Site "Chess.com"]
[Date "2024.02.13"]
[Round "5"]
[White "Shodikulov_Jamshid1990"]
[Black "PolandHussars"]
[Result "0-1"]
[WhiteElo "2366"]
[BlackElo "2590"]
[TimeControl "180+1"]
[EndTime "8:58:42 PST"]
[Termination "PolandHussars won by resignation"]

1. c4 {[%clk 0:02:52.5]} 1... e6 {[%clk 0:02:59.5]} 2. Nc3 {[%clk 0:02:49.9]}
2... c5 {[%clk 0:02:58.5]} 3. g3 {[%clk 0:02:49.4]} 3... Nc6 {[%clk 0:02:55.6]}
4. Nf3 {[%clk 0:02:48.6]} 4... Nf6 {[%clk 0:02:55.5]} 5. Bg2 {[%clk 0:02:49.1]}
5... Be7 {[%clk 0:02:55.5]} 6. O-O {[%clk 0:02:49.6]} 6... O-O {[%clk
0:02:55.5]} 7. d4 {[%clk 0:02:48.5]} 7... cxd4 {[%clk 0:02:55.7]} 8. Nxd4 {[%clk
0:02:49.4]} 8... a6 {[%clk 0:02:56.1]} 9. b3 {[%clk 0:02:43.7]} 9... Qb6 {[%clk
0:02:54.3]} 10. Nc2 {[%clk 0:02:41]} 10... Rd8 {[%clk 0:02:51.4]} 11. e4 {[%clk
0:02:37.8]} 11... Qc7 {[%clk 0:02:47.7]} 12. Bb2 {[%clk 0:02:32]} 12... b6
{[%clk 0:02:48.1]} 13. Qe2 {[%clk 0:02:23.9]} 13... Bb7 {[%clk 0:02:48.1]} 14.
Nd5 {[%clk 0:02:20]} 14... exd5 {[%clk 0:02:45.3]} 15. exd5 {[%clk 0:02:20.9]}
15... Re8 {[%clk 0:02:35.8]} 16. dxc6 {[%clk 0:02:19.8]} 16... Bxc6 {[%clk
0:02:31.7]} 17. Qd2 {[%clk 0:01:58.8]} 17... Bxg2 {[%clk 0:02:22]} 18. Kxg2
{[%clk 0:01:59.7]} 18... Ne4 {[%clk 0:02:17.6]} 19. Qd3 {[%clk 0:01:50.9]} 19...
Nc5 {[%clk 0:02:13.1]} 20. Qf3 {[%clk 0:01:49.9]} 20... Qc6 {[%clk 0:02:10.1]}
21. Rad1 {[%clk 0:01:50.3]} 21... Rad8 {[%clk 0:02:05.9]} 22. Rd5 {[%clk
0:01:49.5]} 22... Bf8 {[%clk 0:02:02.1]} 23. Rfd1 {[%clk 0:01:47.8]} 23... Qg6
{[%clk 0:01:49.2]} 24. Ne3 {[%clk 0:01:42.7]} 24... d6 {[%clk 0:01:35.2]} 25. h4
{[%clk 0:01:41.4]} 25... h6 {[%clk 0:01:34.2]} 26. h5 {[%clk 0:01:34.7]} 26...
Qe4 {[%clk 0:01:30.6]} 27. Nf5 {[%clk 0:01:32.6]} 27... Qxf3+ {[%clk 0:01:29.3]}
28. Kxf3 {[%clk 0:01:33.5]} 28... Re6 {[%clk 0:01:25.6]} 29. g4 {[%clk
0:01:27.8]} 29... Ne4 {[%clk 0:01:22.2]} 30. Kg2 {[%clk 0:01:22.1]} 30... Rc8
{[%clk 0:01:19.4]} 31. f3 {[%clk 0:01:14.2]} 31... Nc5 {[%clk 0:01:16]} 32. Nxd6
{[%clk 0:01:06.4]} 32... Bxd6 {[%clk 0:01:12.8]} 33. Rxd6 {[%clk 0:01:06.8]}
33... Re2+ {[%clk 0:01:13.4]} 34. Kg3 {[%clk 0:00:55.8]} 34... Rxb2 {[%clk
0:01:12.7]} 35. Rxb6 {[%clk 0:00:55.5]} 35... Rxa2 {[%clk 0:01:13]} 36. b4
{[%clk 0:00:54.3]} 36... Ne6 {[%clk 0:01:03.2]} 37. c5 {[%clk 0:00:54.2]} 37...
a5 {[%clk 0:01:03.8]} 38. bxa5 {[%clk 0:00:48.7]} 38... Rxa5 {[%clk 0:01:02.3]}
39. c6 {[%clk 0:00:48.7]} 39... Rc5 {[%clk 0:01:01.5]} 40. Rd6 {[%clk
0:00:48.7]} 40... Rc3 {[%clk 0:00:58]} 0-1

[Event "Early-Titled-Tuesday-Blitz-February-13-2024"]
[Site "Chess.com"]
[Date "2024.02.13"]
[Round "5"]
[White "jaskol95"]
[Black "CaspiIsrael"]
[Result "0-1"]
[WhiteElo "2579"]
[BlackElo "2768"]
[TimeControl "180+1"]
[EndTime "8:58:43 PST"]
[Termination "CaspiIsrael won by checkmate"]

1. e4 {[%clk 0:03:00.9]} 1... d5 {[%clk 0:02:58.1]} 2. exd5 {[%clk 0:02:59.4]}
2... Qxd5 {[%clk 0:02:59]} 3. Nc3 {[%clk 0:02:58.4]} 3... Qd6 {[%clk 0:02:58.6]}
4. Bc4 {[%clk 0:02:57.3]} 4... Be6 {[%clk 0:02:58.1]} 5. Bxe6 {[%clk 0:02:53.2]}
5... Qxe6+ {[%clk 0:02:59]} 6. Nge2 {[%clk 0:02:53.8]} 6... Nc6 {[%clk
0:02:58.4]} 7. d3 {[%clk 0:02:53.3]} 7... O-O-O {[%clk 0:02:58.4]} 8. Be3 {[%clk
0:02:53.3]} 8... Nf6 {[%clk 0:02:57.7]} 9. Qd2 {[%clk 0:02:51.3]} 9... Kb8
{[%clk 0:02:57.6]} 10. O-O-O {[%clk 0:02:50.5]} 10... g6 {[%clk 0:02:56.2]} 11.
Kb1 {[%clk 0:02:44.2]} 11... Bg7 {[%clk 0:02:56]} 12. Nc1 {[%clk 0:02:40.7]}
12... Ng4 {[%clk 0:02:50.4]} 13. Rhe1 {[%clk 0:02:35.7]} 13... Nxe3 {[%clk
0:02:47.2]} 14. Qxe3 {[%clk 0:02:33.1]} 14... Qf6 {[%clk 0:02:42]} 15. Nb3
{[%clk 0:02:28.4]} 15... e6 {[%clk 0:02:41]} 16. Nc5 {[%clk 0:02:14.9]} 16...
Rd4 {[%clk 0:02:31.2]} 17. f3 {[%clk 0:02:10.3]} 17... Rhd8 {[%clk 0:02:30.5]}
18. N3e4 {[%clk 0:01:57.1]} 18... Rxe4 {[%clk 0:02:28.8]} 19. Qc1 {[%clk
0:01:49.6]} 19... Rxe1 {[%clk 0:02:12.1]} 20. Rxe1 {[%clk 0:01:50.5]} 20... Qd4
{[%clk 0:02:06.9]} 21. Nb3 {[%clk 0:01:48.6]} 21... Qf2 {[%clk 0:02:05.9]} 22.
Re4 {[%clk 0:01:46.6]} 22... Qxg2 {[%clk 0:02:04.9]} 23. a4 {[%clk 0:01:45.7]}
23... Qxf3 {[%clk 0:02:03.2]} 24. a5 {[%clk 0:01:46.2]} 24... a6 {[%clk
0:02:00.8]} 25. Rc4 {[%clk 0:01:39.5]} 25... Nd4 {[%clk 0:01:56.9]} 26. Nc5
{[%clk 0:01:38.4]} 26... Qd5 {[%clk 0:01:43.5]} 27. Qe1 {[%clk 0:01:35.3]} 27...
Rd6 {[%clk 0:01:38.7]} 28. Qb4 {[%clk 0:01:33.2]} 28... Nb5 {[%clk 0:01:34.5]}
29. Rf4 {[%clk 0:01:22.1]} 29... f5 {[%clk 0:01:25.6]} 30. c4 {[%clk 0:01:22.2]}
30... Qh1+ {[%clk 0:01:24.4]} 31. Ka2 {[%clk 0:01:22]} 31... Nd4 {[%clk
0:01:21.2]} 32. Re4 {[%clk 0:01:15.9]} 32... Qa1+ {[%clk 0:01:20.7]} 33. Kxa1
{[%clk 0:01:13.9]} 33... Nc2+ {[%clk 0:01:21.3]} 34. Kb1 {[%clk 0:01:14.5]}
34... Nxb4 {[%clk 0:01:22.2]} 35. Re1 {[%clk 0:01:10.1]} 35... Nxd3 {[%clk
0:01:21.8]} 36. Nxd3 {[%clk 0:01:08.4]} 36... Rxd3 {[%clk 0:01:17.5]} 37. Rxe6
{[%clk 0:01:08.9]} 37... Rd2 {[%clk 0:01:17.6]} 38. b3 {[%clk 0:01:08.7]} 38...
Rxh2 {[%clk 0:01:17.2]} 39. Re7 {[%clk 0:01:07.8]} 39... Bd4 {[%clk 0:01:16.6]}
40. Re8+ {[%clk 0:01:08.1]} 40... Ka7 {[%clk 0:01:16.6]} 41. Re7 {[%clk
0:01:09]} 41... c5 {[%clk 0:01:16.2]} 42. b4 {[%clk 0:01:08.6]} 42... Rb2+
{[%clk 0:01:15.8]} 43. Kc1 {[%clk 0:01:08.3]} 43... Rxb4 {[%clk 0:01:16.7]} 44.
Kc2 {[%clk 0:01:09]} 44... Rxc4+ {[%clk 0:01:17.1]} 45. Kb3 {[%clk 0:01:09.8]}
45... Rb4+ {[%clk 0:01:17.3]} 46. Ka2 {[%clk 0:01:10.5]} 46... Rb5 {[%clk
0:01:16.9]} 47. Ka3 {[%clk 0:01:10]} 47... Rxa5+ {[%clk 0:01:17.3]} 48. Kb3
{[%clk 0:01:10.8]} 48... Rb5+ {[%clk 0:01:17.9]} 49. Ka4 {[%clk 0:01:11.4]}
49... f4 {[%clk 0:01:17.7]} 50. Rf7 {[%clk 0:01:09.4]} 50... g5 {[%clk
0:01:17.7]} 51. Rxh7 {[%clk 0:01:09.2]} 51... f3 {[%clk 0:01:18.1]} 52. Rf7
{[%clk 0:01:09.7]} 52... f2 {[%clk 0:01:18.5]} 53. Rf3 {[%clk 0:01:09.2]} 53...
g4 {[%clk 0:01:17.7]} 54. Rf8 {[%clk 0:01:05.4]} 54... g3 {[%clk 0:01:17.8]} 55.
Rg8 {[%clk 0:01:04.1]} 55... f1=Q {[%clk 0:01:17.2]} 56. Rxg3 {[%clk 0:01:03]}
56... Qa1+ {[%clk 0:01:13.3]} 57. Ra3 {[%clk 0:01:03.1]} 57... Rb4+ {[%clk
0:01:13.8]} 58. Ka5 {[%clk 0:01:03.3]} 58... b6# {[%clk 0:01:14.2]} 0-1

[Event "Early-Titled-Tuesday-Blitz-February-13-2024"]
[Site "Chess.com"]
[Date "2024.02.13"]
[Round "5"]
[White "ValiantCeleb"]
[Black "wild3000"]
[Result "1-0"]
[WhiteElo "2173"]
[BlackElo "2388"]
[TimeControl "180+1"]
[EndTime "8:58:43 PST"]
[Termination "ValiantCeleb won by checkmate"]

1. d4 {[%clk 0:02:59.9]} 1... d5 {[%clk 0:03:00]} 2. Bf4 {[%clk 0:02:58.7]} 2...
c6 {[%clk 0:03:00.1]} 3. e3 {[%clk 0:02:58.6]} 3... Nf6 {[%clk 0:02:59.7]} 4. c4
{[%clk 0:02:51.1]} 4... g6 {[%clk 0:02:59]} 5. Nc3 {[%clk 0:02:49.8]} 5... Bg7
{[%clk 0:02:59.3]} 6. Nf3 {[%clk 0:02:47.9]} 6... O-O {[%clk 0:02:59.5]} 7. Be2
{[%clk 0:02:47.8]} 7... dxc4 {[%clk 0:02:59.5]} 8. Bxc4 {[%clk 0:02:47.3]} 8...
b5 {[%clk 0:03:00.1]} 9. Be2 {[%clk 0:02:44.8]} 9... a6 {[%clk 0:03:00.7]} 10.
h3 {[%clk 0:02:37.7]} 10... Bb7 {[%clk 0:03:01.6]} 11. O-O {[%clk 0:02:35.3]}
11... Nbd7 {[%clk 0:03:01.5]} 12. a4 {[%clk 0:02:32.9]} 12... b4 {[%clk
0:03:01.3]} 13. Nb1 {[%clk 0:02:32.8]} 13... c5 {[%clk 0:03:01.5]} 14. Ne5
{[%clk 0:02:12.5]} 14... Nd5 {[%clk 0:02:57.9]} 15. Nxd7 {[%clk 0:01:59.3]}
15... Qxd7 {[%clk 0:02:58]} 16. Be5 {[%clk 0:01:49.7]} 16... Bxe5 {[%clk
0:02:54.7]} 17. dxe5 {[%clk 0:01:48.7]} 17... Qf5 {[%clk 0:02:52.9]} 18. Nd2
{[%clk 0:01:34.4]} 18... Qxe5 {[%clk 0:02:52.4]} 19. Nc4 {[%clk 0:01:32.1]}
19... Qg5 {[%clk 0:02:45.2]} 20. Bf3 {[%clk 0:00:57.7]} 20... Rad8 {[%clk
0:02:44.9]} 21. Qc2 {[%clk 0:00:56.2]} 21... Ba8 {[%clk 0:02:34.3]} 22. Rad1
{[%clk 0:00:53.1]} 22... e6 {[%clk 0:02:34.3]} 23. Kh1 {[%clk 0:00:45.9]} 23...
h5 {[%clk 0:02:33.2]} 24. Nd2 {[%clk 0:00:38.9]} 24... Nf6 {[%clk 0:02:20.5]}
25. Bxa8 {[%clk 0:00:35.4]} 25... Rxa8 {[%clk 0:02:21.4]} 26. Nf3 {[%clk
0:00:32.8]} 26... Qf5 {[%clk 0:02:21.5]} 27. Qc4 {[%clk 0:00:29.8]} 27... g5
{[%clk 0:02:09.2]} 28. Rc1 {[%clk 0:00:13.4]} 28... Rfc8 {[%clk 0:02:02.9]} 29.
h4 {[%clk 0:00:11.6]} 29... gxh4 {[%clk 0:01:57]} 30. Qxh4 {[%clk 0:00:10.5]}
30... Kg7 {[%clk 0:01:52.4]} 31. Rc4 {[%clk 0:00:10.1]} 31... a5 {[%clk
0:01:43.8]} 32. Rf4 {[%clk 0:00:09.7]} 32... Qg6 {[%clk 0:01:44]} 33. Ne5 {[%clk
0:00:09.3]} 33... Qh6 {[%clk 0:01:40.3]} 34. Qg3+ {[%clk 0:00:06.9]} 34... Kf8
{[%clk 0:01:36.4]} 35. Qf3 {[%clk 0:00:06.3]} 35... Ke7 {[%clk 0:01:34]} 36.
Qb7+ {[%clk 0:00:06.2]} 36... Kd6 {[%clk 0:01:29.5]} 37. Nxf7# {[%clk
0:00:06.2]} 1-0

[Event "Early-Titled-Tuesday-Blitz-February-13-2024"]
[Site "Chess.com"]
[Date "2024.02.13"]
[Round "5"]
[White "mertfelin"]
[Black "Msb2"]
[Result "0-1"]
[WhiteElo "2325"]
[BlackElo "2985"]
[TimeControl "180+1"]
[EndTime "8:58:58 PST"]
[Termination "Msb2 won by checkmate"]

1. e4 {[%clk 0:03:00.2]} 1... e6 {[%clk 0:03:00.2]} 2. d4 {[%clk 0:03:00.5]}
2... d5 {[%clk 0:03:00.7]} 3. Nd2 {[%clk 0:03:01.2]} 3... c5 {[%clk 0:03:00.7]}
4. Ngf3 {[%clk 0:02:59.1]} 4... Nf6 {[%clk 0:03:00.6]} 5. exd5 {[%clk
0:02:58.6]} 5... Nxd5 {[%clk 0:03:01.5]} 6. Nb3 {[%clk 0:02:52.5]} 6... cxd4
{[%clk 0:03:01.8]} 7. Nbxd4 {[%clk 0:02:52.6]} 7... Bb4+ {[%clk 0:03:02.5]} 8.
Bd2 {[%clk 0:02:48.5]} 8... O-O {[%clk 0:03:02.6]} 9. Bd3 {[%clk 0:02:47.9]}
9... h6 {[%clk 0:02:54.4]} 10. O-O {[%clk 0:02:43.5]} 10... Be7 {[%clk
0:02:44.4]} 11. Re1 {[%clk 0:02:41]} 11... Nd7 {[%clk 0:02:43.3]} 12. Nb3 {[%clk
0:02:36.3]} 12... Qc7 {[%clk 0:02:40.7]} 13. h3 {[%clk 0:02:26]} 13... b6 {[%clk
0:02:40.4]} 14. Qe2 {[%clk 0:02:25.3]} 14... N5f6 {[%clk 0:02:36.4]} 15. Bc3
{[%clk 0:02:21.4]} 15... Bb7 {[%clk 0:02:34.8]} 16. Rad1 {[%clk 0:02:17]} 16...
Rad8 {[%clk 0:02:34]} 17. Ne5 {[%clk 0:02:13.8]} 17... Nxe5 {[%clk 0:02:32.4]}
18. Bxe5 {[%clk 0:02:13.6]} 18... Qc6 {[%clk 0:02:32.1]} 19. f3 {[%clk 0:02:12]}
19... Qc8 {[%clk 0:02:15.7]} 20. c3 {[%clk 0:02:03.8]} 20... Rd5 {[%clk
0:02:12.9]} 21. Bb1 {[%clk 0:01:46.5]} 21... Rfd8 {[%clk 0:02:11.7]} 22. Qc2
{[%clk 0:01:42.1]} 22... Rxd1 {[%clk 0:01:56]} 23. Rxd1 {[%clk 0:01:42.1]} 23...
Rxd1+ {[%clk 0:01:56.3]} 24. Qxd1 {[%clk 0:01:42.6]} 24... a5 {[%clk 0:01:57.1]}
25. Qc2 {[%clk 0:01:39.9]} 25... a4 {[%clk 0:01:47.3]} 26. Nd4 {[%clk
0:01:34.5]} 26... a3 {[%clk 0:01:36.6]} 27. b3 {[%clk 0:01:18.5]} 27... Qc5
{[%clk 0:01:30.7]} 28. f4 {[%clk 0:00:26.2]} 28... Be4 {[%clk 0:01:27.9]} 29.
Qc1 {[%clk 0:00:23.5]} 29... Bxb1 {[%clk 0:01:27.9]} 30. Qxb1 {[%clk 0:00:20.3]}
30... Qxc3 {[%clk 0:01:26.9]} 31. Kh1 {[%clk 0:00:13.5]} 31... Qb2 {[%clk
0:01:24.5]} 32. Qd3 {[%clk 0:00:06.3]} 32... Bc5 {[%clk 0:01:03.1]} 33. Nc6
{[%clk 0:00:05.5]} 33... Qc1+ {[%clk 0:01:03.6]} 34. Kh2 {[%clk 0:00:05.6]}
34... Bg1+ {[%clk 0:01:04.3]} 35. Kg3 {[%clk 0:00:06.3]} 35... Qe1+ {[%clk
0:01:04.7]} 36. Kf3 {[%clk 0:00:06]} 36... Qf2# {[%clk 0:01:05.4]} 0-1

[Event "Early-Titled-Tuesday-Blitz-February-13-2024"]
[Site "Chess.com"]
[Date "2024.02.13"]
[Round "5"]
[White "Kopytkin"]
[Black "Ariadna_Atreides"]
[Result "1-0"]
[WhiteElo "2373"]
[BlackElo "2139"]
[TimeControl "180+1"]
[EndTime "8:59:02 PST"]
[Termination "Kopytkin won by checkmate"]

1. e4 {[%clk 0:03:00.9]} 1... c6 {[%clk 0:02:59.7]} 2. d4 {[%clk 0:02:59]} 2...
d5 {[%clk 0:03:00.2]} 3. exd5 {[%clk 0:02:57.6]} 3... cxd5 {[%clk 0:02:59.9]} 4.
c4 {[%clk 0:02:58.5]} 4... e6 {[%clk 0:02:56.8]} 5. Nc3 {[%clk 0:02:58.5]} 5...
Nf6 {[%clk 0:02:56.6]} 6. Nf3 {[%clk 0:02:58.3]} 6... Bb4 {[%clk 0:02:54.1]} 7.
Bd3 {[%clk 0:02:52.4]} 7... a6 {[%clk 0:02:47.2]} 8. cxd5 {[%clk 0:02:49.4]}
8... Nxd5 {[%clk 0:02:45.8]} 9. Bd2 {[%clk 0:02:49.4]} 9... O-O {[%clk
0:02:41.2]} 10. O-O {[%clk 0:02:36.6]} 10... Nxc3 {[%clk 0:02:38.8]} 11. bxc3
{[%clk 0:02:36.1]} 11... Be7 {[%clk 0:02:39.5]} 12. h4 {[%clk 0:02:31.9]} 12...
Nd7 {[%clk 0:02:32]} 13. h5 {[%clk 0:02:16.6]} 13... Nf6 {[%clk 0:02:31.1]} 14.
h6 {[%clk 0:02:16.5]} 14... g6 {[%clk 0:02:29.5]} 15. Ne5 {[%clk 0:02:12.5]}
15... Qc7 {[%clk 0:02:19.2]} 16. Qf3 {[%clk 0:01:58.4]} 16... Bd7 {[%clk
0:01:44.4]} 17. Rab1 {[%clk 0:01:54.8]} 17... Rab8 {[%clk 0:01:30.8]} 18. Bg5
{[%clk 0:01:30]} 18... Bc6 {[%clk 0:01:25.3]} 19. Nxc6 {[%clk 0:01:01.9]} 19...
Qxc6 {[%clk 0:01:24.9]} 20. Qxc6 {[%clk 0:01:01.8]} 20... bxc6 {[%clk
0:01:24.9]} 21. Bf4 {[%clk 0:00:41.6]} 21... Ra8 {[%clk 0:01:17.4]} 22. Rb7
{[%clk 0:00:38.4]} 22... Nd5 {[%clk 0:01:15.3]} 23. Bd2 {[%clk 0:00:23.9]} 23...
Bd6 {[%clk 0:01:00.6]} 24. Rfb1 {[%clk 0:00:23.6]} 24... Bf4 {[%clk 0:00:56.6]}
25. Bxf4 {[%clk 0:00:18.7]} 25... Nxf4 {[%clk 0:00:57.5]} 26. Be4 {[%clk
0:00:15.9]} 26... Nd5 {[%clk 0:00:56.9]} 27. c4 {[%clk 0:00:15.6]} 27... f5
{[%clk 0:00:54.8]} 28. cxd5 {[%clk 0:00:14.6]} 28... fxe4 {[%clk 0:00:54.8]} 29.
dxc6 {[%clk 0:00:14.5]} 29... Rac8 {[%clk 0:00:50.8]} 30. Rg7+ {[%clk
0:00:13.9]} 30... Kh8 {[%clk 0:00:49.3]} 31. Rbb7 {[%clk 0:00:14.8]} 31... Rfd8
{[%clk 0:00:44.1]} 32. Rxh7+ {[%clk 0:00:14.8]} 32... Kg8 {[%clk 0:00:44.2]} 33.
Rbg7+ {[%clk 0:00:15.4]} 33... Kf8 {[%clk 0:00:44.3]} 34. Rh8# {[%clk
0:00:15.9]} 1-0

[Event "Early-Titled-Tuesday-Blitz-February-13-2024"]
[Site "Chess.com"]
[Date "2024.02.13"]
[Round "5"]
[White "MIss_MIaMI"]
[Black "David_George21"]
[Result "1-0"]
[WhiteElo "2428"]
[BlackElo "2248"]
[TimeControl "180+1"]
[EndTime "8:59:05 PST"]
[Termination "MIss_MIaMI won by resignation"]

1. e4 {[%clk 0:03:00.9]} 1... c5 {[%clk 0:02:59]} 2. Nf3 {[%clk 0:03:00]} 2...
d6 {[%clk 0:02:58.7]} 3. d4 {[%clk 0:03:00.6]} 3... cxd4 {[%clk 0:02:58.7]} 4.
c3 {[%clk 0:03:01.3]} 4... Nf6 {[%clk 0:02:59.3]} 5. Bd3 {[%clk 0:03:01.4]} 5...
dxc3 {[%clk 0:02:58.2]} 6. Nxc3 {[%clk 0:03:02.3]} 6... Nc6 {[%clk 0:02:57.3]}
7. h3 {[%clk 0:03:02.5]} 7... e6 {[%clk 0:02:57.4]} 8. O-O {[%clk 0:03:03.1]}
8... a6 {[%clk 0:02:57.4]} 9. Qe2 {[%clk 0:03:03.6]} 9... Be7 {[%clk 0:02:57.5]}
10. Rd1 {[%clk 0:03:04.2]} 10... O-O {[%clk 0:02:57.7]} 11. e5 {[%clk
0:03:03.3]} 11... Nd7 {[%clk 0:02:54.4]} 12. exd6 {[%clk 0:03:02.5]} 12... Bxd6
{[%clk 0:02:51.1]} 13. Bxh7+ {[%clk 0:03:01.6]} 13... Kxh7 {[%clk 0:02:51]} 14.
Rxd6 {[%clk 0:02:54.2]} 14... Qe7 {[%clk 0:02:46.6]} 15. Rd3 {[%clk 0:02:32.1]}
15... g6 {[%clk 0:02:35.8]} 16. Bf4 {[%clk 0:02:07.6]} 16... Re8 {[%clk
0:02:20.1]} 17. Bd6 {[%clk 0:02:03.8]} 17... Qf6 {[%clk 0:02:07.2]} 18. Ne4
{[%clk 0:01:57.7]} 18... Qg7 {[%clk 0:02:06.7]} 19. Rad1 {[%clk 0:01:29.1]}
19... e5 {[%clk 0:02:00.1]} 20. Ba3 {[%clk 0:01:20]} 20... Nf8 {[%clk
0:01:41.9]} 21. Nd6 {[%clk 0:01:12.8]} 21... Rd8 {[%clk 0:01:39.1]} 22. Ng5+
{[%clk 0:01:05.3]} 22... Kg8 {[%clk 0:01:37.1]} 23. Ngxf7 {[%clk 0:00:45.6]}
23... Rd7 {[%clk 0:01:35.8]} 24. Ng5 {[%clk 0:00:43.4]} 24... Nd4 {[%clk
0:01:26.8]} 25. Qe4 {[%clk 0:00:32.8]} 25... Qf6 {[%clk 0:01:15.3]} 26. Qd5+
{[%clk 0:00:26.3]} 26... Kh8 {[%clk 0:01:14.4]} 27. Nge4 {[%clk 0:00:20.1]}
27... Qe6 {[%clk 0:01:06.2]} 28. Rxd4 {[%clk 0:00:19.5]} 28... exd4 {[%clk
0:01:03.1]} 29. Qxd4+ {[%clk 0:00:20.4]} 29... Rg7 {[%clk 0:00:56]} 30. Ng5
{[%clk 0:00:16.4]} 30... Qe2 {[%clk 0:00:53.7]} 31. Ndf7+ {[%clk 0:00:10.6]}
31... Kg8 {[%clk 0:00:53.2]} 32. Nh6+ {[%clk 0:00:11.1]} 32... Kh8 {[%clk
0:00:50.5]} 33. Bxf8 {[%clk 0:00:11.6]} 1-0